Cogmind - Beta 9.2 @@@ ROGUE MODE // 2019.11.15 @ 20:14:02 Player: Mountainmanden Result: Destroyed by D-53 Grenadier with Mini Grenade Launcher Performance ------------- Evolutions (1) 500 Regions Visited (3) 600 Robots Destroyed (33) 165 Value Destroyed (703) 703 Prototype IDs (2) 40 Alien Tech Used (0) 0 Bonus (0) 0 TOTAL SCORE: 2008 Bonus ------- None Cogmind --------- Core Integrity 0/400 Matter 265/300 Energy 56/265 System Corruption 0% Temperature Cool (0) Movement Walking (180) Ox2 Location -9/Mines Parts ------- > --- POWER (1) -------- Improved Ion Engine > --- PROPULSION (2) --- Aluminum Leg > --- UTILITY (4) ------ Large Storage Unit Targeting Computer Weapon Shielding Hacking Suite > --- WEAPON (2) ------- (None) > --- INVENTORY (10) --- Ion Engine Ion Engine Aluminum Leg Heat Sink Peak State ------------ > --- POWER ------------ Ion Engine > --- PROPULSION ------- Aluminum Leg Aluminum Leg > --- UTILITY ---------- Large Storage Unit Improved Terrain Scanner Targeting Computer Hacking Suite > --- WEAPON ----------- Light Assault Rifle Light Assault Rifle > --- INVENTORY -------- Ion Engine Improved Ion Engine Aluminum Leg Heat Sink Weapon Shielding Beam Rifle Light Assault Rifle Grenade Launcher [Rating: 13] Favorites ----------- Power Ion Engine Engine Ion Engine Propulsion Aluminum Leg Treads Light Treads Leg Aluminum Leg Utility Hacking Suite Device Improved Terrain Scanner Storage Small Storage Unit Processor Targeting Computer Hackware Hacking Suite Protection Weapon Shielding Weapon Light Assault Rifle Energy Gun Beam Rifle Ballistic Gun Light Assault Rifle Launcher Grenade Launcher Build | -11 -10 -9 -9 ------- Run | Scr Mat Mat Min Slots Evolved 2 | . . 2 . Power . | . . . . Propulsion . | . . . . Utility 2 | . . 2 . Weapon . | . . . . Parts Attached 39 | 7 12 16 4 Power 9 | 1 3 3 2 Engine 9 | 1 3 3 2 Core . | . . . . Reactor . | . . . . Propulsion 8 | 2 2 3 1 Treads 2 | . . 2 . Leg 6 | 2 2 1 1 Wheel . | . . . . Hover . | . . . . Flight . | . . . . Utility 7 | 2 2 3 . Device 2 | 1 . 1 . Storage 2 | 1 1 . . Processor 1 | . . 1 . Hackware 1 | . 1 . . Protection 1 | . . 1 . Artifact . | . . . . Weapon 15 | 2 5 7 1 Energy Gun 2 | . . 1 1 Energy Cannon . | . . . . Ballistic Gun 11 | 2 4 5 . Ballistic Cannon . | . . . . Launcher 2 | . 1 1 . Special Weapon . | . . . . Impact Weapon . | . . . . Slashing Weapon . | . . . . Piercing Weapon . | . . . . Special Melee Weapon . | . . . . Unidentified Prototypes . | . . . . Parts Lost 16 | . 1 10 5 Power 2 | . . 1 1 Propulsion 5 | . 1 3 1 Utility 1 | . . 1 . Weapon 8 | . . 5 3 Highest Loss Streak 5 | . 1 5 5 Average Slot Usage (%) 94 | . 96 92 81 Engine 11 | . 12 10 11 Treads 2 | . . 7 6 Leg 19 | . 27 10 2 Device 6 | . 7 6 . Storage 12 | . 14 11 11 Processor 4 | . . 10 11 Hackware 8 | . 6 11 11 Protection 1 | . . 3 11 Ballistic Gun 21 | . 25 15 15 Launcher 2 | . 1 3 . Naked Turns . | . . . . Heaviest Build 28 | 12 25 28 26 Greatest Support 40 | 20 20 40 20 Greatest Overweight (x) 8 | . 1 8 1 Average Overweight (x) . | . . . 1 Largest Inventory Capacity 10 | 6 10 10 10 Average Capacity 7 | 5 6 10 10 Most Carried 8 | . 6 8 7 Average Carried 3 | . 3 5 6 Final Capacity 10 | 6 10 10 10 Final Carried 7 | . 6 7 4 Class Distribution -------------------- 56% | Scavenger-Mutant 43% | Mutant Dominant Class ---------------- Mutant | -10/Materials Scavenger-Mutant | -9/Materials Scavenger-Mutant | -9/Mines Resources | -11 -10 -9 -9 ----------- Run | Scr Mat Mat Min Matter Collected 752 | 221 160 371 . Remotely . | . . . . Salvage Created 963 | 13 434 516 . Parts 62 | 5 33 24 . Haulers Intercepted 1 | . 1 . . Recyclers Shooed 1 | . . 1 . Parts Field Recycled . | . . . . Retrieved Matter . | . . . . Parts Self-Destructed . | . . . . Prevented . | . . . . Kills | -11 -10 -9 -9 ------- Run | Scr Mat Mat Min Combat Hostiles Destroyed 25 | . 14 11 . Guns 18 | . 11 7 . AOE 7 | . 3 4 . Classes Destroyed 8 | 1 6 1 . Builder 1 | . 1 . . Tunneler 1 | 1 . . . Hauler 1 | . 1 . . Recycler 3 | . 1 2 . Operator 2 | . 2 . . Swarmer 11 | . 9 2 . Grunt 11 | . 5 6 . Sentry 3 | . . 3 . Best Kill Streak 6 | 1 5 6 . Combat Bots Only 3 | . 3 3 . Max Kills in Single Turn 2 | 1 2 1 . Gunslinging 1 | . 1 . . Exploded 2 | . 2 1 . Melee . | . . . . Uniques/NPCs Destroyed . | . . . . Combat | -11 -10 -9 -9 -------- Run | Scr Mat Mat Min Damage Taken 2253 | . 642 836 775 Core 534 | . 124 99 311 Absorbed by Shields . | . . . . Core Remaining (%) 75 | 100 50 . . Volleys Fired 104 | 2 53 44 5 Largest 2 | 2 2 2 2 Hottest 76 | 40 40 76 43 Shots Fired 172 | 4 97 64 7 Gun 162 | 4 91 60 7 Cannon . | . . . . Launcher 10 | . 6 4 . Special . | . . . . Kinetic 151 | 4 91 50 6 Thermal 11 | . . 10 1 Explosive 10 | . 6 4 . Electromagnetic . | . . . . Robot Hit Streak 10 | 3 10 10 3 Robot Miss Streak 3 | 1 3 2 2 Penetration Max . | . . . . Secondary Targets 1 | . 1 . . Max Gunslinging Chain 1 | . 1 . . Shots Hit Robots 111 | 3 55 50 3 Core Hits 62 | 1 40 21 . Critical Hits . | . . . . Critical Kills . | . . . . Critical Parts Destroyed . | . . . . Melee Attacks . | . . . . Impact . | . . . . Slashing . | . . . . Piercing . | . . . . Sneak Attacks . | . . . . Combat Hostiles . | . . . . Follow-up Attacks . | . . . . Damage Inflicted 1858 | 20 882 911 45 Guns 1015 | 20 420 530 45 Cannons . | . . . . Explosions 820 | . 453 367 . Melee . | . . . . Ramming 23 | . 9 14 . Kinetic 927 | 20 420 442 45 Thermal 88 | . . 88 . Explosive 744 | . 377 367 . Electromagnetic 76 | . 76 . . Impact . | . . . . Slashing . | . . . . Piercing . | . . . . Highest Corruption . | . . . . Average Corruption . | . . . . Corruption Purged . | . . . . Overload Shots . | . . . . Overflow Damage 77 | . 65 12 . Projectiles . | . . . . Explosions 77 | . 65 12 . Melee . | . . . . Knockbacks . | . . . . Impact . | . . . . Kinetic . | . . . . Secondary . | . . . . Self-Inflicted Damage 75 | . 51 24 . Shots 4 | . 2 2 . Rammed 4 | . . 4 . Targets Rammed 6 | . 2 4 . Kicked 2 | . 2 . . Crushed . | . . . . Highest Temperature 63 | . 24 63 . Average Temperature 16 | . 9 24 . Received Heat Transfer 492 | . 156 336 . Siege Activations . | . . . . Robots Corrupted . | . . . . Combat Hostiles . | . . . . Parts Fried . | . . . . Impact Corruptions . | . . . . Robots Melted . | . . . . Combat Hostiles . | . . . . Parts Melted . | . . . . Heat Transferred 222 | . . 222 . Parts Sabotaged . | . . . . Parts Stolen . | . . . . Parts Stripped . | . . . . Power Chain Reactions 1 | . 1 . . Missiles Intercepted . | . . . . Alert | -11 -10 -9 -9 ------- Run | Scr Mat Mat Min Peak Influence 332 | 5 270 332 51 Average Influence 130 | 1 111 190 40 Maximum Alert Level 1 | . 1 1 . Low Security (%) 76 | 100 83 59 100 Level 1 23 | . 16 40 . Level 2 . | . . . . Level 3 . | . . . . Level 4 . | . . . . Level 5 . | . . . . High Security . | . . . . Max Security . | . . . . Squads Dispatched 5 | . 4 1 . Investigation 2 | . 1 1 . Extermination . | . . . . Reinforcement 3 | . 3 . . Assault . | . . . . Garrison . | . . . . Intercept . | . . . . Construction Impeded . | . . . . Haulers Reinforced . | . . . . Stealth | -11 -10 -9 -9 --------- Run | Scr Mat Mat Min Distress Signals 5 | . 5 . . Communications Jammed . | . . . . Distress Signals . | . . . . Times Spotted 62 | . 31 17 14 Peak Tracking Total 8 | . 6 3 8 Tactical Retreats 1 | . . 1 . Traps | -11 -10 -9 -9 ------- Run | Scr Mat Mat Min Traps Triggered 2 | . 1 1 . Indirectly 1 | . 1 . . Trap Hack Attempts . | . . . . Triggered . | . . . . Disarmed . | . . . . Reprogrammed . | . . . . Reused . | . . . . Traps Extracted . | . . . . Installed . | . . . . Triggered . | . . . . Machines | -11 -10 -9 -9 ---------- Run | Scr Mat Mat Min Machines Disabled 2 | . 2 . . Max in Single Turn 1 | . 1 . . Machines Sabotaged . | . . . . Garrisons Compromised . | . . . . Overloaded Fab Kills . | . . . . Fab Network Shutdowns . | . . . . Hacking | -11 -10 -9 -9 --------- Run | Scr Mat Mat Min Machines Accessed 3 | . 1 2 . Terminals 2 | . . 2 . Fabricators . | . . . . Repair Stations 1 | . 1 . . Recycling Units . | . . . . Scanalyzers . | . . . . Garrison Access . | . . . . Total Hacks 8 | . 4 4 . Successful 6 | . 3 3 . Failed 2 | . 1 1 . Catastrophic 1 | . . 1 . Database Lockouts . | . . . . Manual . | . . . . Terminals 4 | . . 4 . Fabricators . | . . . . Repair Stations 4 | . 4 . . Recycling Units . | . . . . Scanalyzers . | . . . . Garrison Access . | . . . . Terminal Hacks 3 | . . 3 . Robot Analysis 1 | . . 1 . Prototype ID Bank 1 | . . 1 . Hauler Manifests 1 | . . 1 . Fabricator Hacks . | . . . . Repair Station Hacks 3 | . 3 . . Scan Component 2 | . 2 . . Repair 1 | . 1 . . Recycling Unit Hacks . | . . . . Scanalyzer . | . . . . Garrison Access Hacks . | . . . . Unauthorized Hacks . | . . . . Terminals . | . . . . Fabricators . | . . . . Repair Stations . | . . . . Recycling Units . | . . . . Scanalyzers . | . . . . Garrison Access . | . . . . Data Cores Recovered . | . . . . Used . | . . . . Hacking Detections 3 | . 1 2 . Full Trace Events . | . . . . Feedback Events . | . . . . Feedback Blocked . | . . . . Robot Schematics Acquired . | . . . . Robots Built . | . . . . Matter . | . . . . Time . | . . . . Total Robot Build Rating . | . . . . Part Schematics Acquired . | . . . . Parts Built . | . . . . Matter . | . . . . Time . | . . . . Total Part Build Rating . | . . . . Parts Repaired 1 | . 1 . . Time 26 | . 26 . . Parts Recycled . | . . . . Recycled Matter . | . . . . Retrieved Matter . | . . . . Retrieved Components . | . . . . Parts Scanalyzed . | . . . . Part Schematics Acquired . | . . . . Parts Damaged . | . . . . Bothacking | -11 -10 -9 -9 ------------ Run | Scr Mat Mat Min Used RIF Installer . | . . . . Robots Hacked . | . . . . Non-combat . | . . . . Combat . | . . . . Robot Hacks Applied . | . . . . Relay Couplers Released . | . . . . Robots Rewired . | . . . . Allies Hacked . | . . . . Hacks Repelled . | . . . . Allies | -11 -10 -9 -9 -------- Run | Scr Mat Mat Min Total Allies . | . . . . Largest Group . | . . . . Highest-Rated Group . | . . . . Highest-Rated Ally . | . . . . Total Orders . | . . . . Ally Attacks . | . . . . Total Damage . | . . . . Kills . | . . . . Allies Corrupted . | . . . . Allies Melted . | . . . . Intel | -11 -10 -9 -9 ------- Run | Scr Mat Mat Min Robot Analysis Total 1 | . . 1 . Derelict Logs Recovered . | . . . . Drone Launches . | . . . . Drone Recoveries . | . . . . Exploration | -11 -10 -9 -9 ------------- Run | Scr Mat Mat Min Turns Passed 1179 | 75 642 421 41 Spaces Moved 590 | 55 351 171 13 Core 14 | 9 . 5 . Treads 70 | . . 57 13 Legs 506 | 46 351 109 . Wheels . | . . . . Hover . | . . . . Flight . | . . . . Fastest Speed 50 | 50 120 150 180 Average Speed 134 | 108 122 164 180 Slowest Speed 450 | 120 150 450 180 Overloaded Moves . | . . . . Propulsion Burnouts . | . . . . Robots Hopped . | . . . . Cave-ins Triggered . | . . . . Exploration Rate (%) 17 | 4 37 15 13 Regions Visited 3 Branch Regions 1 Pre-discovered Areas . | . . . . Known Exits Taken . | . . . . Unknown Exits Taken 3 | 1 1 1 . Scrap Searched . | . . . . Spaces Dug . | . . . . Terrain Destroyed 50 | . 24 26 . Melee . | . . . . Projectile . | . . . . AOE 50 | . 24 26 . Actions | -11 -10 -9 -9 --------- Run | Scr Mat Mat Min Total 820 | 63 485 247 25 Wait 66 | . 55 8 3 Move 587 | 54 350 170 13 Hop . | . . . . Pick Up 10 | . 5 5 . Fast Attach 15 | 7 4 4 . Attach 11 | . 1 7 3 Detach 1 | . 1 . . Swap 13 | . 7 5 1 Drop 7 | . 7 . . Fire 104 | 2 53 44 5 Melee . | . . . . Ram . | . . . . Kick 2 | . 2 . . Crush 4 | . . 4 . Escape Stasis . | . . . . Rewire . | . . . . Trap . | . . . . Miscellaneous . | . . . . Route ------- -11/Scrapyard -10/Materials -9/Materials -9/Mines History --------- Turn | Location | Event 21 | -11/Scrapyard | Discovered new exit (range 16) 76 | -11/Scrapyard | Entered Materials 265 | -10/Materials | Repaired Ion Engine 335 | -10/Materials | Build established: Mutant 607 | -10/Materials | Discovered new exit (range 11) 718 | -10/Materials | Entered another Materials area 718 | -9/Materials | Evolved 2 slots: Utility x2 817 | -9/Materials | Build established: Scavenger-Mutant 969 | -9/Materials | Lost 5 parts (1p2n2w) 1011 | -9/Materials | Lost 3 parts (1u2w) 1102 | -9/Materials | Discovered new exit (range 16) 1139 | -9/Materials | Entered Mines 1140 | -9/Mines | Assembled infested the area 1145 | -9/Mines | Assisted by a Guerilla fighting off Assembled 1172 | -9/Mines | Core integrity fell below 50% 1179 | -9/Mines | Core integrity fell below 20% 1180 | -9/Mines | Destroyed by D-53 Grenadier with Mini Grenade Launcher Last Messages --------------- as-44250 destroyed. as-53101 suffers critical hit. as-53101 destroyed. as-20532 destroyed. as-48584 destroyed. as-05631 destroyed. K-01 Serf collects debris. Lgt. Treads destroyed. B5-UJ1(h) destroyed. as-36244 destroyed. K-01 Serf collects debris. Hvy. Assault Rifle destroyed. Ion Engine destroyed. The unstable cave ceiling collapses. K-01 Serf collects debris. Lgt. Assault Rifle destroyed. K-01 Serf destroyed. The unstable cave ceiling collapses. U-05 Engineer lays Concrete. Sml. Laser destroyed. Map ----- +----------------------------------------------------+ | ????????????????????????????????????? | | ????????????????????????????????????? | | ????????????????????????????????????? | | ????????????????????????????????????? | | ????????????????????????????????????? | | ????????????????????????????????????? | | ????????????????????????????????????? | | ????????????????????????????????????? | | ????????????????????????????????????? | | ????????????????????????????????????? | | ????????????????????????????????????? | | ????????????????????????????????????? | | ????????????????????????????????????? | | ???????????????????#????????????????? | | ???????????????????#%????????????##?? | | ??????????????????## #??????????? #?? | | ??????????????????# u######???? #?? | | ??????????????????? ##?? #?? | | ??????????????##???? dd #?# #?? | | ??????????????? ???# a ## #??? | | ????????????????# ###a #??? | | ????????????????? a a ##?? | | ???????????????????$ #?? | | ????????????????????# #?? | | ????????????????????# #??? | | ????????????????????# @ #?????? | | ???????????????###### #?????? | | ???????????????# ! #?????? | | ?????????# ##### a =% ##?????? | | ?????????# ##### ##??????? | | ?????????####### ###########???????? | | ??????????# #??????????????? | | ??????????# #??????????????? | | ??????????# #??????????????? | | ??????????# #??????????????? | | ??????????# #??????????????? | | ??????????# """" #??????????????? | | ????????? """" #??????????????? | | ???????? """" #??????????????? | | ???????#### #??????????????? | | ??????????############??????????????? | | ????????????????????????????????????? | | ????????????????????????????????????? | | | | | | | | | | | | | | | +----------------------------------------------------+ Best States ------------- Heat Dissipation 28 Energy Generation 12 Energy Capacity 265 Matter Stores 300 Matter Capacity 300 Sight Range 16 Terrain Scan Range 16 Terrain Scan Density 10 Weapon Shielding 33 Evasion (%) 50 Targeting Accuracy 5 Recoil Reduction 2 Offensive Hacking 10 Item Schematics ----------------- None Robot Schematics ------------------ None Fabricated ------------ Nothing Alien Tech Used ----------------- None Achievements -------------- None Challenges ------------ None Game ------ Seed AluminumMyomerStorm Manual? 0 Play Time 00:28:54 Cumulative 8.5 hours Start 2019.11.15 @ 19:43:55 End 2019.11.15 @ 20:14:02 Sessions 1 Manual Loads 0 Difficulty Rogue Special Mode None Game No. 8 Rogue 6 Adventurer 2 Explorer 0 Win Type - Total 0 Types 0/0/0/0/0/0/0 Lore% 3 Gallery% 11 Achievement% 9 Wizard Run 0 Options --------- ASCII 0 Keyboard 1 Movement Numpad Keybinds 0 Fullscreen 1 Font 18/SmallcapsGlow Map View 76x50 Tactical HUD 0 Map Filters NONE Filters NONE Steam 1 RUN: dac67ff1-15b8-43e8-a2a4-b0bd0e55d891